fUST/lending_fUST_20260102
["ID","MTS","AMOUNT","RATE_DAILY","PERIOD"]
[400307588,1767341920743,-500.0,0.00037044,60]
[400307589,1767341920771,-201.82306387,0.00037044,60]
[400307590,1767341920805,-436.74816915,0.00037044,60]
[400307591,1767341920834,-522.81718627,0.00037044,60]
[400307592,1767341920862,-633.35431409,0.00037044,60]
[400307593,1767341920889,-500.0,0.00037044,60]
[400307594,1767341920916,-500.0,0.00037044,60]
[400307595,1767341920944,-509.24015284,0.00037044,60]
[400307596,1767341920972,-511.58132455,0.00037044,60]
[400307597,1767341921000,-500.0,0.00037044,60]
[400307598,1767341921028,-500.0,0.00037044,60]
[400307599,1767341921056,-500.0,0.00037044,60]
[400307600,1767341921084,-500.0,0.00037044,60]
[400307601,1767341921205,-500.0,0.00037044,60]
[400307602,1767341921242,-500.0,0.00037044,60]
[400307603,1767341921272,-500.0,0.00037044,60]
[400307604,1767341921302,-500.0,0.00037044,60]
[400307605,1767341921333,-500.0,0.00037044,60]
[400307606,1767341921364,-500.0,0.00037044,60]
[400307607,1767341921396,-500.0,0.00037044,60]
[400307608,1767341921428,-591.78033222,0.00037044,60]
[400307609,1767341921459,-500.0,0.00037044,60]
[400307610,1767341921488,-500.0,0.00037044,60]
[400307611,1767341921516,-500.0,0.00037044,60]
[400307612,1767341921545,-500.0,0.00037044,60]
[400307613,1767341921574,-500.0,0.00037044,60]
[400307614,1767341921603,-500.0,0.00037044,60]
[400307615,1767341921634,-500.0,0.00037044,60]
[400307616,1767341921662,-500.0,0.00037044,60]
[400307617,1767341921689,-500.0,0.00037044,60]
[400307618,1767341921717,-535.01587532,0.00037044,60]
[400307619,1767341921745,-500.0,0.00037044,60]
[400307620,1767341921773,-503.94753643,0.00037044,60]
[400307621,1767341921801,-500.0,0.00037044,60]
[400307622,1767341921830,-500.0,0.00037044,60]
[400307623,1767341921860,-500.0,0.00037044,60]
[400307624,1767341921888,-500.0,0.00037044,60]
[400307625,1767341921918,-500.0,0.00037044,60]
[400307626,1767341921947,-500.0,0.00037044,60]
[400307627,1767341921976,-178.0052363,0.00037044,60]
[400307628,1767341922007,-500.0,0.00037044,60]
[400307629,1767341922036,-500.0,0.00037044,60]
[400307630,1767341922066,-500.0,0.00037044,60]
[400307631,1767341922095,-500.0,0.00037044,60]
[400307632,1767341922123,-390.92198232,0.00037044,60]
[400307633,1767341922151,-500.0,0.00037044,60]
[400307634,1767341922178,-158.8876133,0.00037044,60]
[400307635,1767341922204,-500.0,0.00037044,60]
[400307636,1767341922233,-500.0,0.00037044,60]
[400307637,1767341922260,-500.0,0.00037044,60]
[400307638,1767341922290,-541.99789361,0.00037044,60]
[400307639,1767341922321,-500.0,0.00037044,60]
[400307640,1767341922351,-178.910841,0.00037044,60]
[400307641,1767341922381,-606.4929382,0.00037044,60]
[400307642,1767341922410,-313.41319167,0.00037044,60]
[400307643,1767341922440,-529.49459535,0.00037044,60]
[400307644,1767341922470,-500.0,0.00037044,60]
[400307645,1767341922499,-496.42490288,0.00037044,60]
[400307646,1767341922528,-500.0,0.00037044,60]
[400307647,1767341922557,-500.0,0.00037044,60]
[400307648,1767341922588,-500.0,0.00037044,60]
[400307649,1767341922618,-554.34,0.00037044,60]
[400307650,1767341922647,-500.0,0.00037044,60]
[400307651,1767341922676,-500.0,0.00037044,60]
[400307652,1767341922707,-500.0,0.00037044,60]
[400307653,1767341922737,-500.0,0.00037044,60]
[400307654,1767341922765,-500.0,0.00037044,60]
[400307655,1767341922793,-500.0,0.00037044,60]
[400307656,1767341922820,-500.0,0.00037044,60]
[400307657,1767341922849,-500.0,0.00037044,60]
[400307658,1767341922876,-430.85287261,0.00037044,60]
[400307659,1767341922905,-500.0,0.00037044,60]
[400307660,1767341922934,-500.0,0.00037044,60]
[400307661,1767341922963,-522.11274062,0.00037044,60]
[400307662,1767341922992,-500.0,0.00037044,60]
[400307663,1767341923020,-500.0,0.00037044,60]
[400307664,1767341923048,-500.0,0.00037044,60]
[400307665,1767341923153,-500.0,0.00037044,60]
[400307666,1767341923203,-213.38593582,0.00037044,60]
[400307667,1767341923233,-500.0,0.00037044,60]
[400307668,1767341923263,-1841.82,0.00037044,60]
[400307669,1767341923294,-1841.82,0.00037044,60]
[400307670,1767341923325,-578.95419955,0.00037044,60]
[400307671,1767341923357,-1841.82,0.00037044,60]
[400307672,1767341923388,-1841.82,0.00037044,60]
[400307673,1767341923421,-1841.82,0.00037044,60]
[400307674,1767341923451,-1841.82,0.00037044,60]
[400307675,1767341923484,-1841.82,0.00037044,60]
[400307676,1767341923517,-1841.82,0.00037044,60]
[400307677,1767341923549,-641.78229571,0.00037044,60]
[400307678,1767341923579,-1841.82,0.00037044,60]
[400307679,1767341923613,-1841.82,0.00037044,60]
[400307680,1767341923643,-500.0,0.00037044,60]
[400307681,1767341923673,-1841.82,0.00037044,60]
[400307682,1767341923703,-500.0,0.00037044,60]
[400307683,1767341923731,-500.0,0.00037044,60]
[400307684,1767341923759,-1841.82,0.00037044,60]
[400307685,1767341923786,-504.71808101,0.00037044,60]
[400307686,1767341923813,-500.0,0.00037044,60]
[400307687,1767341923841,-1841.82,0.00037044,60]
[400307688,1767341923867,-500.0,0.00037044,60]
[400307689,1767341923894,-500.0,0.00037044,60]
[400307690,1767341923921,-1841.82,0.00037044,60]
[400307691,1767341923949,-500.0,0.00037044,60]
[400307692,1767341923976,-500.0,0.00037044,60]
[400307693,1767341924003,-500.0,0.00037044,60]
[400307694,1767341924029,-1841.82,0.00037044,60]
[400307695,1767341924056,-546.7630187,0.00037044,60]
[400307696,1767341924084,-1841.82,0.00037044,60]
[400307697,1767341924112,-1841.82,0.00037044,60]
[400307698,1767341924139,-1841.82,0.00037044,60]
[400307699,1767341924167,-500.0,0.00037044,60]
[400307700,1767341924195,-1841.82,0.00037044,60]
[400307701,1767341924221,-500.0,0.00037044,60]
[400307702,1767341924249,-1841.82,0.00037044,60]
[400307703,1767341924278,-500.0,0.00037044,60]
[400307704,1767341924307,-1841.82,0.00037044,60]
[400307705,1767341924338,-500.0,0.00037044,60]
[400307706,1767341924368,-1841.82,0.00037044,60]
[400307707,1767341924397,-494.69820612,0.00037044,60]
[400307708,1767341924425,-500.0,0.00037044,60]
[400307709,1767341924455,-1841.82,0.00037044,60]
[400307710,1767341924484,-506.41317627,0.00037044,60]
[400307711,1767341924513,-1841.96550455,0.00037044,60]
[400307712,1767341924542,-500.0,0.00037044,60]
[400307713,1767341924571,-500.0,0.00037044,60]
[400307714,1767341924600,-500.0,0.00037044,60]
[400307715,1767341924634,-363.34637207,0.00037044,60]
[400307716,1767341924664,-500.0,0.00037044,60]
[400307717,1767341924693,-559.97657461,0.00037044,60]
[400307718,1767341924721,-500.0,0.00037044,60]
[400307719,1767341924748,-276.61077038,0.00037044,60]
[400307720,1767341924776,-575.17666941,0.00037044,60]
[400307721,1767341924803,-500.0,0.00037044,60]
[400307722,1767341924832,-339.03876207,0.00037044,60]
[400307723,1767341924859,-500.0,0.00037044,60]
[400307724,1767341924886,-500.0,0.00037044,60]
[400307725,1767341924915,-500.0,0.00037044,60]
[400307726,1767341924943,-500.0,0.00037044,60]
[400307727,1767341924971,-510.1995723,0.00037044,60]
[400307728,1767341925084,-500.0,0.00037044,60]
[400307729,1767341925113,-516.11180326,0.00037044,60]
[400307730,1767341925140,-409.4964937,0.00037044,60]
[400307731,1767341925167,-500.0,0.00037044,60]
[400307732,1767341925195,-599.79679353,0.00037044,60]
[400307733,1767341925223,-500.0,0.00037044,60]
[400307734,1767341925249,-325.77182813,0.00037044,60]
[400307735,1767341925277,-500.0,0.00037044,60]
[400307736,1767341925306,-500.0,0.00037044,60]
[400307737,1767341925335,-571.33704442,0.00037044,60]
[400307738,1767341925366,-513.15561582,0.00037044,60]
[400307739,1767341925395,-500.0,0.00037044,60]
[400307740,1767341925425,-500.0,0.00037044,60]
[400307741,1767341925456,-500.0,0.00037044,60]
[400307742,1767341925486,-289.15153586,0.00037044,60]
[400307743,1767341925514,-500.0,0.00037044,60]
[400307744,1767341925544,-500.0,0.00037044,60]
[400307745,1767341925574,-458.87742652,0.00037044,60]
[400307746,1767341925602,-612.16626272,0.00037044,60]
[400307747,1767341925635,-516.76224168,0.00037044,60]
[400307748,1767341925666,-500.0,0.00037044,60]
[400307749,1767341925694,-505.49494039,0.00037044,60]
[400307750,1767341925721,-500.0,0.00037044,60]
[400307751,1767341925749,-500.0,0.00037044,60]
[400307752,1767341925777,-545.91643156,0.00037044,60]
[400307753,1767341925807,-500.0,0.00037044,60]
[400307754,1767341925836,-500.0,0.00037044,60]
[400307755,1767341925864,-500.0,0.00037044,60]
[400307756,1767341925891,-595.7702027,0.00037044,60]
[400307757,1767341925919,-500.0,0.00037044,60]
[400307758,1767341925947,-500.0,0.00037044,60]
[400307759,1767341925974,-500.0,0.00037044,60]
[400307760,1767341926003,-500.0,0.00037044,60]
[400307761,1767341926031,-500.0,0.00037044,60]
[400307762,1767341926059,-279.98502894,0.00037044,60]
[400307763,1767341926087,-224.82763918,0.00037044,60]
[400307764,1767341926115,-500.0,0.00037044,60]
[400307765,1767341926143,-406.77819408,0.00037044,60]
[400307766,1767341926171,-500.0,0.00037044,60]
[400307767,1767341926199,-212.60974173,0.00037044,60]
[400307768,1767341926227,-538.66854998,0.00037044,60]
[400307769,1767341926255,-500.0,0.00037044,60]
[400307770,1767341926285,-500.0,0.00037044,60]
[400307771,1767341926314,-161.27,0.00037044,60]
[400307772,1767341926343,-593.11733612,0.00037044,60]
[400307773,1767341926371,-500.0,0.00037044,60]
[400307774,1767341926400,-500.0,0.00037044,60]
[400307775,1767341926427,-591.16224531,0.00037044,60]
[400307776,1767341926454,-560.76321371,0.00037044,60]
[400307777,1767341926482,-500.0,0.00037044,60]
[400307778,1767341926510,-500.0,0.00037044,60]
[400307779,1767341926539,-544.24618854,0.00037044,60]
[400307780,1767341926570,-500.0,0.00037044,60]
[400307781,1767341926599,-500.0,0.00037044,60]
[400307782,1767341926632,-500.0,0.00037044,60]
[400307783,1767341926662,-500.0,0.00037044,60]
[400307784,1767341926688,-523.18841202,0.00037044,60]
[400307785,1767341926717,-434.9229066,0.00037044,60]
[400307786,1767341926745,-500.0,0.00037044,60]
[400307787,1767341926773,-333.29345594,0.00037044,60]
[400307788,1767341926889,-232.00206915,0.00037044,60]
[400307789,1767341926919,-194.22494258,0.00037044,60]
[400307790,1767341926949,-363.88840312,0.00037044,60]
[400307791,1767341926978,-533.28269268,0.00037044,60]
[400307792,1767341927006,-500.0,0.00037044,60]
[400307793,1767341927034,-219.44920938,0.00037044,60]
[400307794,1767341927062,-602.03278003,0.00037044,60]
[400307795,1767341927091,-500.0,0.00037044,60]
[400307796,1767341927119,-500.0,0.00037044,60]
[400307797,1767341927146,-551.56057226,0.00037044,60]
[400307798,1767341927174,-500.0,0.00037044,60]
[400307799,1767341927202,-529.50015045,0.00037044,60]
[400307800,1767341927230,-501.16765723,0.00037044,60]
[400307801,1767341927258,-500.0,0.00037044,60]
[400307802,1767341927288,-536.65487577,0.00037044,60]
[400307803,1767341927318,-500.0,0.00037044,60]
[400307804,1767341927349,-500.0,0.00037044,60]
[400307805,1767341927381,-556.05295681,0.00037044,60]
[400307806,1767341927413,-361.50964646,0.00037044,60]
[400307807,1767341927446,-460.75209318,0.00037044,60]
[400307808,1767341927479,-577.282521,0.00037044,60]
[400307809,1767341927511,-271.83333594,0.00037044,60]
[400307810,1767341927544,-500.0,0.00037044,60]
[400307811,1767341927578,-549.93306997,0.00037044,60]
[400307812,1767341927620,-400.79886548,0.00037044,60]
[400307813,1767341927651,-490.88849167,0.00037044,60]
[400307814,1767341927681,-275.86313883,0.00037044,60]
[400307815,1767341927713,-377.40028015,0.00037044,60]
[400307816,1767341927744,-500.0,0.00037044,60]
[400307817,1767341927775,-500.0,0.00037044,60]
[400307818,1767341927812,-529.08564475,0.00037044,60]
[400307819,1767341927843,-500.0,0.00037044,60]
[400307820,1767341927875,-543.08051305,0.00037044,60]
[400307821,1767341927905,-323.13568564,0.00037044,60]
[400307822,1767341927934,-500.0,0.00037044,60]
[400307823,1767341927963,-500.0,0.00037044,60]
[400307824,1767341927992,-533.72763405,0.00037044,60]
[400307825,1767341928021,-587.06186818,0.00037044,60]
[400307826,1767341928050,-163.45709943,0.00037044,60]
[400307827,1767341928078,-500.0,0.00037044,60]
[400307828,1767341928106,-500.0,0.00037044,60]
[400307829,1767341928133,-500.0,0.00037044,60]
[400307830,1767341928161,-648.42739009,0.00037044,60]
[400307831,1767341928189,-500.0,0.00037044,60]
[400307832,1767341928216,-500.0,0.00037044,60]
[400307833,1767341928243,-500.0,0.00037044,60]
[400307834,1767341928271,-220.732514,0.00037044,60]
[400307835,1767341928298,-405.03153418,0.00037044,60]
[400307836,1767341928327,-445.26358399,0.00037044,60]
[400307837,1767341928356,-432.58932002,0.00037044,60]
[400307838,1767341928385,-586.50724542,0.00037044,60]
[400307839,1767341928413,-560.79477935,0.00037044,60]
[400307840,1767341928442,-500.0,0.00037044,30]
[400307841,1767341928470,-500.0,0.00037044,30]
[400307842,1767341928499,-150.69115058,0.00037044,60]
[400307843,1767341928528,-500.0,0.00037044,30]
[400307844,1767341928556,-500.0,0.00037044,30]
[400307845,1767341928582,-500.0,0.00037044,30]
[400307846,1767341928681,-500.0,0.00037044,30]
[400307847,1767341928725,-500.0,0.00037044,30]
[400307848,1767341928753,-500.0,0.00037044,30]
[400307849,1767341928780,-500.0,0.00037044,30]
[400307850,1767341928807,-500.0,0.00037044,30]
[400307851,1767341928834,-500.0,0.00037044,30]
[400307852,1767341928861,-500.0,0.00037044,30]
[400307853,1767341928888,-500.0,0.00037044,30]
[400307854,1767341928915,-500.0,0.00037044,30]
[400307855,1767341928942,-162.74196711,0.00037044,30]
[400307856,1767341928968,-567.14807385,0.00037044,60]
[400307857,1767341928996,-500.0,0.00037044,60]
[400307858,1767341929023,-500.0,0.00037044,60]
[400307859,1767341929049,-506.88035312,0.00037044,60]
[400307860,1767341929077,-500.0,0.00037044,60]
[400307861,1767341929105,-500.0,0.00037044,60]
[400307862,1767341929132,-500.0,0.00037044,60]
[400307863,1767341929159,-222.12876659,0.00037044,60]
[400307864,1767341929186,-228.26502608,0.00037044,60]
[400307865,1767341929212,-547.73301413,0.00037044,60]
[400307866,1767341929238,-500.0,0.00037044,60]
[400307867,1767341929265,-500.0,0.00037044,60]
[400307868,1767341929294,-277.00259472,0.00037044,60]
[400307869,1767341929323,-364.54726265,0.00037044,60]
[400307870,1767341929352,-375.21158926,0.00037044,60]
[400307871,1767341929381,-500.0,0.00037044,60]
[400307872,1767341929410,-515.71103875,0.00037044,60]
[400307873,1767341929439,-500.0,0.00037044,60]
[400307874,1767341929468,-280.69021721,0.00037044,60]
[400307875,1767341929497,-542.22045433,0.00037044,60]
[400307876,1767341929526,-490.57506323,0.00037044,60]
[400307877,1767341929555,-518.26353774,0.00037044,60]
[400307878,1767341929584,-234.06158354,0.00037044,60]
[400307879,1767341929615,-464.31543338,0.00037044,60]
[400307880,1767341929644,-159.230654,0.00037044,60]
[400307881,1767341929674,-541.63156557,0.00037044,60]
[400307882,1767341929703,-500.0,0.00037044,60]
[400307883,1767341929731,-500.0,0.00037044,60]
[400307884,1767341929759,-411.76360006,0.00037044,60]
[400307885,1767341929789,-674.12,0.00037044,60]
[400307886,1767341929816,-674.12,0.00037044,60]
[400307887,1767341929844,-674.12,0.00037044,60]
[400307888,1767341929872,-674.12,0.00037044,60]
[400307889,1767341929900,-674.12,0.00037044,60]
[400307890,1767341929927,-674.12,0.00037044,60]
[400307891,1767341929957,-674.12,0.00037044,60]
[400307892,1767341929985,-674.12,0.00037044,60]
[400307893,1767341930013,-674.12,0.00037044,60]
[400307894,1767341930041,-674.12,0.00037044,60]
[400307895,1767341930069,-674.12,0.00037044,60]
[400307896,1767341930097,-674.12,0.00037044,60]
[400307897,1767341930124,-674.12,0.00037044,60]
[400307898,1767341930152,-674.12,0.00037044,60]
[400307899,1767341930179,-674.12,0.00037044,60]
[400307900,1767341930206,-674.12,0.00037044,60]
[400307901,1767341930234,-674.12,0.00037044,60]
[400307902,1767341930262,-674.12,0.00037044,60]
[400307903,1767341930379,-674.12,0.00037044,60]
[400307904,1767341930413,-674.12,0.00037044,60]
[400307905,1767341930445,-674.12,0.00037044,60]
[400307906,1767341930476,-674.12,0.00037044,60]
[400307907,1767341930507,-674.12,0.00037044,60]
[400307908,1767341930537,-227.97534557,0.00037044,60]
[400307909,1767341930566,-674.28514234,0.00037044,60]
[400307910,1767341930596,-500.0,0.00037044,60]
[400307911,1767341930628,-568.7615286,0.00037044,60]
[400307912,1767341930658,-417.18181785,0.00037044,60]
[400307913,1767341930689,-463.3551956,0.00037044,60]
[400307914,1767341930719,-500.0,0.00037044,60]
[400307915,1767341930748,-500.0,0.00037044,60]
[400307916,1767341930778,-500.0,0.00037044,60]
[400307917,1767341930808,-531.28978122,0.00037044,60]
[400307918,1767341930837,-490.56884891,0.00037044,60]
[400307919,1767341930867,-500.0,0.00037044,60]
[400307920,1767341930898,-500.0,0.00037044,60]
[400307921,1767341930928,-328.7281925,0.00037044,60]
[400307922,1767341930958,-500.0,0.00037044,60]
[400307923,1767341930987,-500.0,0.00037044,60]
[400307924,1767341931015,-305.9375669,0.00037044,60]
[400307925,1767341931042,-639.51534338,0.00037044,30]
[400307926,1767341931070,-188.24792593,0.00037044,60]
[400307927,1767341931099,-160.9159702,0.00037044,60]
[400307928,1767341931127,-768.08,0.00037044,60]
[400307929,1767341931154,-768.08,0.00037044,60]
[400307930,1767341931182,-768.08,0.00037044,60]
[400307931,1767341931209,-768.08,0.00037044,60]
[400307932,1767341931236,-768.08,0.00037044,60]
[400307933,1767341931264,-768.08,0.00037044,60]
[400307934,1767341931292,-768.08,0.00037044,60]
[400307935,1767341931320,-768.08,0.00037044,60]
[400307936,1767341931349,-768.08,0.00037044,60]
[400307937,1767341931377,-768.08,0.00037044,60]
[400307938,1767341931404,-500.0,0.00037044,60]
[400307939,1767341931432,-768.08,0.00037044,60]
[400307940,1767341931459,-500.0,0.00037044,60]
[400307941,1767341931487,-768.08,0.00037044,60]
[400307942,1767341931514,-500.0,0.00037044,60]
[400307943,1767341931542,-517.3875329,0.00037044,60]
[400307944,1767341931571,-768.08,0.00037044,60]
[400307945,1767341931600,-500.0,0.00037044,60]
[400307946,1767341931631,-768.08,0.00037044,60]
[400307947,1767341931659,-389.15422425,0.00037044,60]
[400307948,1767341931685,-768.08,0.00037044,60]
[400307949,1767341931712,-392.30101633,0.00037044,60]
[400307950,1767341931739,-768.08,0.00037044,60]
[400307951,1767341931764,-768.08,0.00037044,60]
[400307952,1767341931791,-768.08,0.00037044,60]
[400307953,1767341931818,-768.08,0.00037044,60]
[400307954,1767341931846,-768.08,0.00037044,60]
[400307955,1767341931872,-768.08,0.00037044,60]
[400307956,1767341931899,-768.08,0.00037044,60]
[400307957,1767341932002,-768.08,0.00037044,60]
[400307958,1767341932029,-768.17837403,0.00037044,60]
[400307959,1767341932057,-500.0,0.00037044,60]
[400307960,1767341932083,-545.53811946,0.00037044,60]
[400307961,1767341932110,-500.0,0.00037044,60]
[400307962,1767341932136,-500.0,0.00037044,60]
[400307963,1767341932164,-329.85401773,0.00037044,60]
[400307964,1767341932191,-500.0,0.00037044,60]
[400307965,1767341932219,-500.0,0.00037044,60]
[400307966,1767341932246,-500.0,0.00037044,60]
[400307967,1767341932273,-500.0,0.00037044,60]
[400307968,1767341932300,-500.0,0.00037044,60]
[400307969,1767341932329,-500.0,0.00037044,60]
[400307970,1767341932357,-500.0,0.00037044,60]
[400307971,1767341932384,-500.0,0.00037044,60]
[400307972,1767341932412,-500.0,0.00037044,60]
[400307973,1767341932440,-500.0,0.00037044,60]
[400307974,1767341932467,-489.20448384,0.00037044,60]
[400307975,1767341932496,-435.81415694,0.00037044,60]
[400307976,1767341932525,-500.0,0.00037044,60]
[400307977,1767341932553,-500.0,0.00037044,60]
[400307978,1767341932582,-500.0,0.00037044,60]
[400307979,1767341932616,-500.0,0.00037044,60]
[400307980,1767341932646,-500.0,0.00037044,60]
[400307981,1767341932677,-500.0,0.00037044,60]
[400307982,1767341932704,-500.0,0.00037044,60]
[400307983,1767341932731,-500.0,0.00037044,60]
[400307984,1767341932758,-204.01487119,0.00037044,60]
[400307985,1767341932786,-500.0,0.00037044,60]
[400307986,1767341932815,-500.0,0.00037044,60]
[400307987,1767341932842,-500.0,0.00037044,60]
[400307988,1767341932872,-500.0,0.00037044,60]
[400307989,1767341932899,-448.25583963,0.00037044,60]
[400307990,1767341932927,-476.33519853,0.00037044,60]
[400307991,1767341932956,-500.0,0.00037044,60]
[400307992,1767341932983,-500.0,0.00037044,60]
[400307993,1767341933012,-500.0,0.00037044,60]
[400307994,1767341933039,-504.92124397,0.00037044,60]
[400307995,1767341933068,-500.0,0.00037044,60]
[400307996,1767341933096,-500.0,0.00037044,60]
[400307997,1767341933125,-500.0,0.00037044,60]
[400307998,1767341933153,-547.88964552,0.00037044,60]
[400307999,1767341933182,-286.3058314,0.00037044,60]
[400308000,1767341933210,-500.0,0.00037044,60]
[400308001,1767341933239,-500.0,0.00037044,60]
[400308002,1767341933269,-354.94298759,0.00037044,60]
[400308003,1767341933299,-563.27765255,0.00037044,60]
[400308004,1767341933329,-500.0,0.00037044,60]
[400308005,1767341933359,-500.0,0.00037044,60]
[400308006,1767341933388,-500.0,0.00037044,60]
[400308007,1767341933419,-339.32724658,0.00037044,60]
[400308008,1767341933447,-485.05988573,0.00037044,60]
[400308009,1767341933477,-518.20129402,0.00037044,60]
[400308010,1767341933588,-500.0,0.00037044,60]
[400308011,1767341933621,-500.0,0.00037044,60]
[400308012,1767341933652,-500.0,0.00037044,60]
[400308013,1767341933681,-500.0,0.00037044,60]
[400308014,1767341933711,-500.0,0.00037044,60]
[400308015,1767341933740,-500.0,0.00037044,60]
[400308016,1767341933769,-424.18573489,0.00037044,60]
[400308017,1767341933799,-258.42529303,0.00037044,60]
[400308018,1767341933830,-500.0,0.00037044,60]
[400308019,1767341933860,-500.0,0.00037044,60]
[400308020,1767341933889,-500.0,0.00037044,60]
[400308021,1767341933919,-500.0,0.00037044,60]
[400308022,1767341933948,-420.53882847,0.00037044,60]
[400308023,1767341933978,-500.0,0.00037044,60]
[400308024,1767341934007,-500.0,0.00037044,60]
[400308025,1767341934036,-568.4860615,0.00037044,60]
[400308026,1767341934065,-500.0,0.00037044,60]
[400308027,1767341934094,-500.0,0.00037044,60]
[400308028,1767341934122,-500.0,0.00037044,60]
[400308029,1767341934151,-526.51777107,0.00037044,60]
[400308030,1767341934181,-500.0,0.00037044,60]
[400308031,1767341934209,-500.0,0.00037044,60]
[400308032,1767341934236,-500.0,0.00037044,60]
[400308033,1767341934263,-500.0,0.00037044,60]
[400308034,1767341934292,-500.0,0.00037044,60]
[400308035,1767341934321,-398.65849093,0.00037044,60]
[400308036,1767341934353,-500.0,0.00037044,60]
[400308037,1767341934384,-500.0,0.00037044,60]
[400308038,1767341934416,-500.0,0.00037044,60]
[400308039,1767341934447,-500.0,0.00037044,60]
[400308040,1767341934476,-500.0,0.00037044,60]
[400308041,1767341934506,-500.0,0.00037044,60]
[400308042,1767341934535,-500.0,0.00037044,60]
[400308043,1767341934565,-500.0,0.00037044,60]
[400308044,1767341934594,-500.0,0.00037044,60]
[400308045,1767341934628,-500.0,0.00037044,60]
[400308046,1767341934658,-237.49191989,0.00037044,60]
[400308047,1767341934688,-344.68644427,0.00037044,60]
[400308048,1767341934716,-500.0,0.00037044,60]
[400308049,1767341934743,-500.0,0.00037044,60]
[400308050,1767341934769,-344.22873692,0.00037044,60]
[400308051,1767341934796,-500.0,0.00037044,60]
[400308052,1767341934823,-546.03029311,0.00037044,60]
[400308053,1767341934853,-500.0,0.00037044,120]
[400308054,1767341934882,-501.78217934,0.00037044,60]
[400308055,1767341934911,-500.0,0.00037044,60]
[400308056,1767341934942,-500.0,0.00037044,60]
[400308057,1767341934971,-500.0,0.00037044,60]
[400308058,1767341935001,-500.0,0.00037044,60]
[400308059,1767341935030,-500.0,0.00037044,60]
[400308060,1767341935057,-473.16617093,0.00037044,60]
[400308061,1767341935163,-412.05106651,0.00037044,60]
[400308062,1767341935194,-500.0,0.00037044,60]
[400308063,1767341935222,-500.0,0.00037044,60]
[400308064,1767341935251,-500.0,0.00037044,60]
[400308065,1767341935282,-500.0,0.00037044,60]
[400308066,1767341935313,-509.80225023,0.00037044,60]
[400308067,1767341935345,-500.0,0.00037044,60]
[400308068,1767341935376,-500.0,0.00037044,60]
[400308069,1767341935407,-500.0,0.00037044,60]
[400308070,1767341935438,-518.42680488,0.00037044,60]
[400308071,1767341935470,-212.59694109,0.00037044,60]
[400308072,1767341935499,-500.0,0.00037044,60]
[400308073,1767341935527,-500.0,0.00037044,60]
[400308074,1767341935556,-500.0,0.00037044,60]
[400308075,1767341935586,-500.0,0.00037044,60]
[400308076,1767341935617,-500.0,0.00037044,60]
[400308077,1767341935647,-500.0,0.00037044,60]
[400308078,1767341935676,-500.0,0.00037044,60]
[400308079,1767341935705,-330.335264,0.00037044,60]
[400308080,1767341935742,-500.0,0.00037044,60]
[400308081,1767341935782,-500.0,0.00037044,60]
[400308082,1767341935825,-610.88968097,0.00037044,60]
[400308083,1767341935854,-500.0,0.00037044,60]
[400308084,1767341935882,-251.27349156,0.00037044,60]
[400308085,1767341935909,-570.00872947,0.00037044,60]
[400308086,1767341935938,-500.0,0.00037044,60]
[400308087,1767341935966,-500.0,0.00037044,60]